bitfinex/quotes_BTCUSD_20241206
["timestamp","ask_amount","ask_price","bid_price","bid_amount"]
[1733501108332,0.05,99548.0,99497.0,0.00100488]
[1733501108333,0.200976,99514.0,99497.0,0.00100488]
[1733501108556,0.200957,99524.0,99502.0,0.201]
[1733501108557,0.20097,99517.0,99502.0,0.201]
[1733501108792,0.20097,99517.0,99504.0,0.200996]
[1733501109026,0.20097,99517.0,99506.0,0.200992]
[1733501109267,0.2019468,99524.0,99507.0,0.10503154]
[1733501109268,0.0009898,99524.0,99507.0,0.10503154]
[1733501109505,0.0009898,99524.0,99508.0,0.03160723]
[1733501109712,0.200946,99530.0,99516.0,0.200971]
[1733501109968,0.200946,99530.0,99514.0,0.01983159]
[1733501109969,0.00157458,99530.0,99517.0,0.10503154]
[1733501110219,0.00157458,99530.0,99520.0,0.200964]
[1733501110417,0.00057798,99530.0,99525.0,0.200953]
[1733501110625,0.00057798,99530.0,99526.0,0.03059845]
[1733501110834,0.00057798,99530.0,99520.0,0.10503154]
[1733501111585,0.40246798,99530.0,99520.0,0.10503154]
[1733501111806,0.40246798,99530.0,99526.0,0.003]
[1733501111807,0.200948,99528.0,99526.0,0.003]
[1733501112451,0.00057798,99530.0,99526.0,0.003]
[1733501112690,0.200946,99529.0,99526.0,0.003]
[1733501112910,0.00057798,99530.0,99527.0,0.0831]
[1733501114083,0.200946,99529.0,99527.0,0.0831]
[1733501114291,0.00057798,99530.0,99527.0,0.0831]
[1733501114503,0.200946,99529.0,99527.0,0.006]
[1733501114929,0.200946,99529.0,99526.0,0.002]
[1733501115213,0.200946,99529.0,99527.0,0.006]
[1733501115654,0.200946,99529.0,99527.0,0.008]
[1733501116756,0.00113644,99528.0,99527.0,0.008]
[1733501117609,0.200946,99529.0,99520.0,0.11542193]
[1733501117823,0.200946,99529.0,99527.0,0.005]
[1733501118048,0.00144558,99530.0,99527.0,0.001]
[1733501118517,0.0084494,99529.0,99527.0,0.004]
[1733501118725,0.00144558,99530.0,99520.0,0.11542193]
[1733501118726,0.0084494,99528.0,99520.0,0.11542193]
[1733501118930,0.00144558,99530.0,99520.0,0.11542193]
[1733501119148,0.0084518,99529.0,99521.0,0.06202935]
[1733501119366,0.0084518,99528.0,99527.0,0.001]
[1733501120011,0.0084518,99528.0,99527.0,0.005]
[1733501120479,0.0084518,99528.0,99527.0,0.001]
[1733501120708,0.0084518,99528.0,99527.0,0.004]
[1733501120919,0.0084518,99528.0,99521.0,0.001]
[1733501121125,0.0084518,99527.0,99521.0,0.001]
[1733501121344,0.200948,99529.0,99520.0,0.11542193]
[1733501121553,0.00845102,99528.0,99520.0,0.11542193]
[1733501121801,0.200948,99529.0,99527.0,0.006]
[1733501122013,0.00845102,99528.0,99527.0,0.006]
[1733501122230,0.00845102,99528.0,99527.0,0.005]
[1733501123103,0.00845102,99528.0,99520.0,0.17845188]
[1733501123330,0.00845102,99527.0,99520.0,0.17845188]
[1733501123557,0.00845102,99527.0,99520.0,0.18245188]
[1733501123793,0.200948,99529.0,99520.0,0.17845188]
[1733501124014,0.00844999,99528.0,99527.0,0.005]
[1733501124251,0.00958643,99528.0,99520.0,0.001]
[1733501124486,0.200962,99521.0,99520.0,0.005]
[1733501124934,0.200962,99521.0,99507.0,0.01036093]
[1733501124935,0.00844999,99521.0,99507.0,0.01036093]
[1733501125189,0.200985,99510.0,99508.0,0.11886763]
[1733501125430,0.11775745,99530.0,99508.0,0.11886763]
[1733501125431,0.200976,99515.0,99508.0,0.11886763]
[1733501126336,0.001999,99528.0,99508.0,0.11886763]
[1733501126584,0.001999,99528.0,99505.0,0.0799]
[1733501126585,0.200987,99509.0,99505.0,0.0799]
[1733501126813,0.201001,99502.0,99498.0,0.02033965]
[1733501127069,0.20098,99512.0,99498.0,0.10503154]
[1733501127295,0.00845176,99511.0,99503.0,0.200997]
[1733501127517,0.200934,99535.0,99504.0,0.10503154]
[1733501127518,0.00845604,99517.0,99504.0,0.10503154]
[1733501127790,0.00845604,99516.0,99508.0,0.002]
[1733501128006,0.00845604,99515.0,99513.0,0.200978]
[1733501128248,0.0009988,99520.0,99514.0,0.58928354]
[1733501128470,0.200954,99525.0,99514.0,0.18733154]
[1733501128702,0.200954,99525.0,99490.0,0.11631187]
[1733501128703,0.00959502,99524.0,99504.0,0.0823]
[1733501128931,0.11631187,99520.0,99504.0,0.10503154]
[1733501129160,0.11631187,99520.0,99505.0,0.01050315]
[1733501129161,0.200992,99507.0,99505.0,0.01050315]
[1733501129630,0.401984,99507.0,99503.0,0.009]
[1733501129855,0.200994,99505.0,99503.0,0.002]
[1733501130085,0.00959802,99504.0,99503.0,0.002]
[1733501130604,0.00113644,99504.0,99503.0,0.002]
[1733501130849,0.00846235,99504.0,99503.0,0.002]
[1733501131076,0.00846235,99504.0,99503.0,0.10503154]
[1733501131316,0.00144558,99530.0,99503.0,0.11953469]
[1733501131317,0.20307854,99525.0,99503.0,0.11953469]
[1733501131549,0.200987,99509.0,99504.0,0.10503154]
[1733501131774,0.00846813,99508.0,99504.0,0.10503154]
[1733501131997,0.20945813,99507.0,99505.0,0.00289589]
[1733501132243,0.00846813,99506.0,99505.0,0.00289589]
[1733501132465,0.00960457,99506.0,99503.0,0.004]
[1733501132696,0.00846813,99505.0,99503.0,0.004]
[1733501132933,0.00113644,99504.0,99503.0,0.004]
[1733501133165,0.200994,99505.0,99503.0,0.004]
[1733501133444,0.00113644,99504.0,99484.0,0.02014616]
[1733501133668,0.0019881,99525.0,99484.0,0.02014616]
[1733501133669,0.201009,99498.0,99484.0,0.02014616]
[1733501133890,0.201009,99498.0,99487.0,0.01009477]
[1733501134575,0.0009874,99512.0,99487.0,0.01009477]
[1733501134576,0.201015,99495.0,99487.0,0.01009477]
[1733501134804,0.201015,99495.0,99468.0,0.33416474]
[1733501134805,0.201023,99491.0,99490.0,0.0027344]
[1733501135046,0.201023,99491.0,99490.0,0.0077344]
[1733501135505,0.201023,99491.0,99490.0,0.0067344]
[1733501136462,0.46601353,99491.0,99490.0,0.0067344]
[1733501136917,0.46601353,99491.0,99490.0,0.0037344]
[1733501137143,0.46601353,99491.0,99490.0,0.0047344]
[1733501137393,0.45605454,99491.0,99490.0,0.0027344]
[1733501137638,0.45605454,99491.0,99490.0,4e-07]
[1733501137639,0.69766339,99491.0,99490.0,4e-07]
[1733501137862,0.70266339,99491.0,99490.0,4e-07]
[1733501138095,0.69766339,99491.0,99490.0,4e-07]
[1733501138368,0.69866339,99491.0,99490.0,4e-07]
[1733501138631,0.69866339,99491.0,99450.0,0.0017352]
[1733501138632,0.201104,99451.0,99450.0,0.0017352]
[1733501138857,0.05,99482.0,99450.0,0.00190862]
[1733501138858,0.2011,99453.0,99450.0,0.00190862]
[1733501139097,0.201104,99451.0,99450.0,0.00823367]
[1733501139349,0.2011,99453.0,99450.0,0.00190862]
[1733501140064,0.201093,99457.0,99450.0,0.00190862]
[1733501140311,0.201089,99459.0,99450.0,0.00190862]
[1733501140312,0.402178,99459.0,99450.0,0.00190862]
[1733501140790,0.001,99453.0,99450.0,0.01090862]
[1733501141014,0.201097,99455.0,99450.0,0.00190862]
[1733501141502,0.201097,99455.0,99450.0,0.01090862]
[1733501141503,0.402194,99455.0,99450.0,0.01090862]
[1733501141747,0.00113644,99454.0,99450.0,0.00590862]
[1733501141966,0.201089,99459.0,99450.0,0.01490862]
[1733501141967,0.001,99453.0,99450.0,0.01490862]
[1733501143186,0.00113644,99456.0,99450.0,0.00590862]
[1733501143434,0.001,99455.0,99450.0,0.01490862]
[1733501143659,0.201097,99454.0,99450.0,0.01490862]
[1733501143883,0.201097,99454.0,99450.0,0.00590862]
[1733501144105,0.001,99453.0,99450.0,0.01490862]
[1733501144556,0.201097,99454.0,99450.0,0.00590862]
[1733501144808,0.201102,99452.0,99450.0,0.01090862]
[1733501145075,0.00113644,99451.0,99450.0,0.00190862]
[1733501145300,0.00113644,99451.0,99450.0,0.00590862]
[1733501146545,0.0009885,99479.0,99450.0,0.00590862]
[1733501146746,0.201101,99453.0,99450.0,0.01226666]
[1733501146971,0.001,99453.0,99450.0,0.01090862]
[1733501147444,0.00113644,99455.0,99450.0,0.00190862]
[1733501147445,0.201097,99454.0,99450.0,0.00190862]
[1733501147670,0.201083,99462.0,99450.0,0.00990862]
[1733501147671,0.001,99451.0,99450.0,0.00990862]
[1733501147891,0.01092991,99479.0,99450.0,0.10694016]
[1733501147892,0.201069,99469.0,99450.0,0.10694016]
[1733501148118,0.01092991,99479.0,99452.0,0.201102]
[1733501148363,0.001,99453.0,99452.0,0.201102]
[1733501148865,0.001,99453.0,99452.0,0.38613354]
[1733501149346,0.001,99453.0,99452.0,0.45556254]
[1733501149585,0.2020489,99476.0,99456.0,0.201093]
[1733501149586,0.201062,99472.0,99456.0,0.201093]
[1733501149832,0.201062,99472.0,99457.0,0.10503154]
[1733501150128,0.0009959,99476.0,99457.0,0.10503154]
[1733501150129,0.201081,99463.0,99457.0,0.10503154]
[1733501150351,0.00113644,99462.0,99452.0,0.1289]
[1733501150579,0.001,99453.0,99452.0,0.15098086]
[1733501150809,0.201071,99468.0,99452.0,0.234937]
[1733501151034,0.0009996,99475.0,99454.0,0.201097]
[1733501151267,0.201063,99471.0,99455.0,0.10503154]
[1733501151510,0.20220144,99470.0,99455.0,0.30612554]
[1733501151733,0.20220244,99470.0,99456.0,0.04369432]
[1733501151957,0.20220244,99470.0,99457.0,0.10503154]
[1733501152446,0.201077,99465.0,99457.0,0.10503154]
[1733501152693,0.201067,99469.0,99457.0,0.10503154]
[1733501152922,0.201085,99461.0,99457.0,0.10503154]
[1733501153144,0.201067,99469.0,99452.0,0.1319]
[1733501153429,0.201043,99481.0,99452.0,0.1319]
[1733501153430,0.201099,99454.0,99452.0,0.001]
[1733501153652,0.20223644,99453.0,99450.0,0.00190862]
[1733501153891,0.2011,99453.0,99450.0,0.00190862]
[1733501154622,0.201104,99451.0,99450.0,0.00190862]
[1733501154847,0.201104,99451.0,99450.0,0.00790862]
[1733501156551,0.201104,99451.0,99450.0,0.00190862]
[1733501156775,0.202104,99451.0,99450.0,0.00890862]
[1733501156994,0.201104,99451.0,99450.0,0.00190862]
[1733501157228,0.201104,99451.0,99450.0,0.00390862]
[1733501157456,0.203104,99451.0,99450.0,0.00390862]
[1733501157687,0.355104,99451.0,99450.0,0.00390862]
[1733501157977,0.46013554,99451.0,99450.0,0.00390862]
[1733501158220,0.55883554,99451.0,99450.0,0.00390862]
[1733501158912,0.46013554,99451.0,99450.0,0.00390862]
[1733501159132,0.205104,99451.0,99450.0,0.00390862]
[1733501159563,0.203104,99451.0,99450.0,0.00390862]
[1733501159784,0.22217613,99451.0,99450.0,0.00490862]
[1733501160012,0.21317613,99451.0,99450.0,0.00390862]
[1733501160243,0.31620767,99451.0,99450.0,0.00190862]
[1733501160495,0.47220767,99451.0,99450.0,0.00290862]
[1733501160705,0.47220767,99451.0,99450.0,0.00190862]
[1733501160930,0.47220767,99451.0,99411.0,0.0791]
[1733501160931,0.201182,99412.0,99411.0,0.0791]
[1733501161162,0.11658781,99440.0,99411.0,0.0791]
[1733501161390,0.10616798,99439.0,99411.0,0.0791]
[1733501161610,0.201177,99415.0,99411.0,0.0791]
[1733501161882,0.201177,99415.0,99407.0,0.15291024]
[1733501161883,0.201188,99410.0,99407.0,0.0478787]
[1733501163025,0.0009917,99427.0,99407.0,0.0478787]
[1733501163026,0.0009917,99427.0,99408.0,0.10503154]
[1733501163475,0.15113644,99444.0,99407.0,0.0478787]
[1733501163476,0.201182,99413.0,99407.0,0.0478787]
[1733501163738,0.201182,99412.0,99407.0,0.0478787]
[1733501164934,0.00113644,99411.0,99407.0,0.0005787]
[1733501165169,0.201161,99423.0,99407.0,0.0035787]
[1733501165170,0.201187,99410.0,99407.0,0.0035787]
[1733501165391,0.201191,99408.0,99407.0,0.0115787]
[1733501166353,0.201191,99408.0,99407.0,0.0085787]
[1733501166581,0.201191,99408.0,99407.0,0.0005787]
[1733501167070,0.201191,99408.0,99407.0,0.0095787]
[1733501167316,0.201191,99408.0,99407.0,0.0005787]
[1733501167845,0.201191,99408.0,99407.0,0.0035787]
[1733501168083,0.201191,99408.0,99407.0,0.0005787]
[1733501168343,0.202191,99408.0,99407.0,0.0025787]
[1733501168773,0.202191,99408.0,99407.0,0.0005787]
[1733501169468,0.201191,99408.0,99407.0,0.0005787]
[1733501169726,0.202191,99408.0,99407.0,0.0005787]
[1733501170227,0.201191,99408.0,99407.0,0.00064915]
[1733501170700,0.0009975,99427.0,99407.0,0.00664915]
[1733501170929,0.0009975,99427.0,99407.0,0.00064915]
[1733501171159,0.00113644,99444.0,99407.0,0.02394745]
[1733501171381,0.17489789,99440.0,99408.0,0.00402808]
[1733501171629,0.10616798,99439.0,99407.0,0.00064915]
[1733501171881,0.15,99438.0,99407.0,0.00364915]
[1733501172138,0.10616798,99437.0,99408.0,0.083]
[1733501172392,0.15,99436.0,99409.0,0.00866492]
[1733501172618,0.0795973,99445.0,99409.0,0.11369646]
[1733501172619,0.00113644,99435.0,99409.0,0.11369646]
[1733501172846,0.00113644,99435.0,99410.0,0.00402663]
[1733501173591,0.00113644,99436.0,99417.0,0.201171]
[1733501173811,0.00113644,99435.0,99418.0,0.14017179]
[1733501174049,0.00113644,99435.0,99418.0,0.10905037]
[1733501174485,0.002,99435.0,99418.0,0.10905037]
[1733501175873,0.00113644,99440.0,99418.0,0.10905037]
[1733501175874,0.00113644,99440.0,99419.0,0.0792]
[1733501176101,0.00113644,99448.0,99420.0,0.10503154]
[1733501176328,0.01031002,99449.0,99420.0,0.10503154]
[1733501176329,0.002,99435.0,99420.0,0.10503154]
[1733501176556,0.002,99435.0,99420.0,0.00401739]
[1733501176778,0.00113644,99434.0,99420.0,0.00401739]
[1733501177281,0.00113644,99434.0,99420.0,0.00501739]
[1733501177282,0.17489789,99430.0,99420.0,0.00501739]
[1733501177527,0.00113644,99429.0,99420.0,0.001]
[1733501177748,0.223,99439.0,99412.0,0.0452]
[1733501177749,0.15,99439.0,99412.0,0.0452]
[1733501177986,0.00113644,99433.0,99421.0,0.00401039]
[1733501178208,0.00113644,99433.0,99412.0,0.0452]
[1733501178438,0.00113644,99433.0,99420.0,0.003]
[1733501178883,0.00113644,99439.0,99421.0,0.00401039]
[1733501179126,0.00113644,99438.0,99421.0,0.00401039]
[1733501179367,0.002,99434.0,99412.0,0.0452]
[1733501179613,0.00113644,99433.0,99413.0,0.00561414]
[1733501179859,0.00113644,99433.0,99413.0,0.00963031]
[1733501180096,0.00113644,99433.0,99415.0,0.201176]
[1733501180347,0.001,99439.0,99413.0,0.00963031]
[1733501180348,0.00113644,99438.0,99416.0,0.10503154]
[1733501180576,0.003,99439.0,99417.0,0.23727649]
[1733501180805,0.00113644,99438.0,99418.0,0.10503154]
[1733501181095,0.001,99433.0,99418.0,0.10904409]
[1733501181340,0.0008676,99450.0,99418.0,0.10904409]
[1733501181341,0.0008676,99450.0,99432.0,0.10503154]
[1733501181567,0.0008676,99450.0,99430.0,0.17489789]
[1733501181568,0.0009991,99449.0,99448.0,0.277109]
[1733501181796,0.0008676,99450.0,99448.0,0.18103154]
[1733501182028,0.0008676,99450.0,99449.0,0.03821495]
[1733501182299,0.0008676,99450.0,99448.0,0.18512859]
[1733501182509,0.0008676,99450.0,99449.0,0.0040938]
[1733501183192,0.00101848,99450.0,99449.0,0.0040938]
[1733501183686,0.00201848,99450.0,99449.0,0.0040938]
[1733501183943,0.00201848,99450.0,99449.0,0.0060938]
[1733501184172,0.00201848,99450.0,99449.0,0.13084335]
[1733501184173,0.00101848,99450.0,99449.0,0.13084335]
[1733501184420,0.00101848,99450.0,99449.0,0.38425135]
[1733501184421,0.00201848,99450.0,99449.0,0.38425135]
[1733501184647,0.00073898,99450.0,99449.0,0.38324587]
[1733501184874,0.00073898,99450.0,99449.0,0.71089812]
[1733501185103,0.0009921,99489.0,99450.0,0.0809]
[1733501185325,0.0009921,99489.0,99470.0,0.17489789]
[1733501185580,0.0001733,99489.0,99488.0,0.201029]
[1733501185807,0.0001733,99489.0,99488.0,0.30606054]
[1733501186042,0.0001733,99489.0,99488.0,0.10908961]
[1733501186769,0.0009816,99519.0,99488.0,0.13007664]
[1733501186971,0.0009816,99519.0,99489.0,0.10503154]
[1733501187214,0.0009816,99519.0,99489.0,0.10918816]
[1733501187488,0.0009816,99519.0,99490.0,0.00100505]
[1733501187717,0.0009816,99519.0,99491.0,0.10503154]
[1733501187953,0.0508676,99530.0,99492.0,0.22274585]
[1733501188181,0.0009829,99529.0,99493.0,0.10503154]
[1733501188398,0.0009829,99529.0,99493.0,0.10916215]
[1733501188895,0.0009829,99529.0,99494.0,0.0472]
[1733501189139,0.0009829,99529.0,99494.0,0.15223154]
[1733501189382,0.0009829,99529.0,99495.0,0.02012473]
[1733501189858,0.1509829,99529.0,99496.0,0.00412795]
[1733501191032,0.0018672,99510.0,99496.0,0.00412795]
[1733501191321,0.0008672,99510.0,99496.0,0.00412795]
[1733501191764,0.0018672,99510.0,99496.0,0.01112795]
[1733501191989,0.0008672,99510.0,99496.0,0.00412795]
[1733501192209,0.0008672,99510.0,99496.0,0.00612795]
[1733501192432,0.0018672,99510.0,99496.0,0.01312795]
[1733501192699,0.0018672,99510.0,99496.0,0.02865908]
[1733501192930,0.0008672,99510.0,99496.0,0.02365908]
[1733501193395,0.0008672,99510.0,99496.0,0.02165908]
[1733501193638,0.0008672,99510.0,99496.0,0.00612795]
[1733501194735,0.0008672,99510.0,99497.0,0.10603655]
[1733501194958,0.0008672,99510.0,99497.0,0.11016358]
[1733501195176,0.0008672,99510.0,99502.0,0.201]
[1733501195392,0.0008672,99510.0,99498.0,0.083]
[1733501195393,0.0008672,99510.0,99503.0,0.10503154]
[1733501195615,0.0018672,99510.0,99503.0,0.10923287]
[1733501195842,0.0018672,99510.0,99503.0,0.11023775]
[1733501196065,0.0008672,99510.0,99509.0,0.200986]
[1733501196292,0.0008672,99510.0,99509.0,0.30601754]
[1733501196541,0.0018672,99510.0,99509.0,0.31029346]
[1733501196769,0.0018672,99510.0,99509.0,0.38151485]
[1733501196995,0.0008676,99530.0,99509.0,0.38151485]
[1733501196996,0.0008676,99530.0,99510.0,0.32489789]
[1733501197210,0.0008676,99530.0,99524.0,0.200955]
[1733501197450,0.0008676,99530.0,99529.0,0.283146]
[1733501197678,0.0008676,99530.0,99529.0,0.44719126]
[1733501197929,0.0008676,99530.0,99529.0,0.4514443]
[1733501198567,0.00144549,99530.0,99529.0,0.4514443]
[1733501198989,0.00144549,99530.0,99529.0,0.4801818]
[1733501199906,0.00144549,99530.0,99529.0,0.43132049]
[1733501200130,0.00144549,99530.0,99529.0,0.43632049]
[1733501200400,0.00144549,99530.0,99529.0,0.49295527]
[1733501200628,0.00144549,99530.0,99529.0,0.29200927]
[1733501201052,0.00144549,99530.0,99529.0,0.28913713]
[1733501201289,0.00144549,99530.0,99529.0,0.26939963]
[1733501201743,0.01032651,99561.0,99529.0,0.26939963]
[1733501201969,0.15,99569.0,99529.0,0.26939963]
[1733501201970,0.00103992,99550.0,99534.0,0.15]
[1733501202197,0.00103992,99550.0,99547.0,0.200909]
[1733501202407,0.00103992,99550.0,99548.0,0.10603595]
[1733501202619,0.00103992,99550.0,99549.0,0.0306945]
[1733501202838,0.00103992,99550.0,99549.0,0.13572604]
[1733501203063,0.00103992,99550.0,99549.0,0.14716415]
[1733501203700,0.00103992,99550.0,99549.0,0.14816415]
[1733501203913,0.00103992,99550.0,99549.0,0.00957184]
[1733501205240,0.00103992,99550.0,99549.0,0.01242207]
[1733501205460,0.00103992,99550.0,99549.0,0.005]
[1733501205735,0.00103992,99550.0,99549.0,0.01643131]
[1733501205954,0.00103992,99550.0,99549.0,0.005]
[1733501206390,0.00103992,99550.0,99549.0,0.01642543]
[1733501206610,0.00103992,99550.0,99549.0,0.00856907]
[1733501207086,0.00103992,99550.0,99549.0,0.003]
[1733501207306,0.00103992,99550.0,99549.0,0.008569]
[1733501207514,0.00103992,99550.0,99534.0,0.0783]
[1733501207728,0.00103992,99550.0,99549.0,0.00440679]
[1733501208182,0.00103992,99550.0,99549.0,0.00440651]
[1733501208413,0.00103992,99550.0,99535.0,0.10503154]
[1733501208615,0.00103992,99550.0,99549.0,0.00440651]
[1733501208831,0.00103992,99550.0,99535.0,0.10503154]
[1733501209042,0.00103992,99550.0,99549.0,0.00840651]
[1733501209253,0.00103992,99550.0,99549.0,0.004]
[1733501209461,0.00103992,99550.0,99549.0,0.00440616]
[1733501209684,0.00103992,99550.0,99536.0,0.02735022]
[1733501209893,0.00103992,99550.0,99549.0,0.00440616]
[1733501210103,0.00103992,99550.0,99537.0,0.10503154]
[1733501210313,0.00103992,99550.0,99549.0,0.00440616]
[1733501210523,0.00103992,99550.0,99549.0,0.10903154]
[1733501210736,0.00103992,99550.0,99549.0,0.11343891]
[1733501212046,0.200872,99566.0,99549.0,0.11343891]
[1733501212047,0.00842162,99565.0,99549.0,0.11343891]
[1733501212265,0.2017315,99570.0,99549.0,0.11343891]
[1733501212266,0.17528745,99570.0,99549.0,0.00858059]
[1733501212476,0.2009,99552.0,99549.0,0.00417322]
[1733501212925,0.4018,99552.0,99549.0,0.00417322]
[1733501213178,0.4018,99552.0,99549.0,0.00017322]
[1733501213399,0.2009,99552.0,99549.0,0.00017322]
[1733501214058,0.2009,99552.0,99549.0,0.00317322]
[1733501214920,0.4018,99552.0,99549.0,0.00317322]
[1733501215140,0.2009,99552.0,99549.0,0.00317322]
[1733501216022,0.200893,99556.0,99549.0,0.00317322]
[1733501216233,0.200882,99561.0,99549.0,0.00317322]
[1733501216444,0.00796675,99567.0,99549.0,0.00317322]
[1733501216666,0.200884,99560.0,99549.0,0.02358244]
[1733501216867,0.200882,99561.0,99549.0,0.00017322]
[1733501217081,0.00844371,99559.0,99549.0,0.00017322]
[1733501217302,0.00844371,99558.0,99550.0,0.10503154]
[1733501217523,0.00844371,99558.0,99550.0,0.13574386]
[1733501217730,0.00844371,99557.0,99551.0,0.200902]
[1733501217929,0.00844371,99556.0,99553.0,0.0782]
[1733501218131,0.0009892,99569.0,99554.0,0.10503154]
[1733501218562,0.0009892,99569.0,99554.0,0.1094486]
[1733501218767,0.2018552,99569.0,99555.0,0.03887248]
[1733501218972,0.001,99557.0,99556.0,0.10503154]
[1733501219108,0.001,99557.0,99556.0,0.10948792]
[1733501219514,0.200874,99565.0,99556.0,0.10948792]
[1733501219765,0.200879,99563.0,99556.0,0.10948792]
[1733501219974,0.200879,99563.0,99557.0,0.01959851]
[1733501220209,0.200879,99563.0,99557.0,0.02405417]
[1733501220404,0.200871,99566.0,99557.0,0.02405417]
[1733501220608,0.2058562,99569.0,99557.0,0.02405417]
[1733501220885,0.2058562,99569.0,99558.0,0.02155829]
[1733501220886,0.0009892,99569.0,99558.0,0.02155829]
[1733501221104,0.0009892,99569.0,99559.0,0.00445091]
[1733501221318,0.0008675,99570.0,99559.0,0.00445091]
[1733501221536,0.200867,99568.0,99559.0,0.00445091]
[1733501222788,0.203867,99568.0,99559.0,0.00445091]
[1733501223864,0.203867,99568.0,99556.0,0.10503154]
[1733501224077,0.203867,99568.0,99556.0,0.12870173]
[1733501224283,0.203867,99568.0,99557.0,0.00445235]
[1733501224691,0.17528745,99570.0,99557.0,0.00445235]
[1733501224908,0.17528745,99570.0,99543.0,0.0799]
[1733501224909,0.200895,99555.0,99543.0,0.0799]
[1733501225120,0.200894,99555.0,99543.0,0.0799]
[1733501225960,0.200895,99554.0,99543.0,0.0799]
[1733501226776,0.200898,99553.0,99543.0,0.0799]
[1733501226980,0.401796,99553.0,99543.0,0.0799]
[1733501227186,0.401796,99553.0,99549.0,0.00217322]
[1733501227408,0.200898,99553.0,99549.0,0.00017322]
[1733501227847,0.2009,99552.0,99549.0,0.00017322]
[1733501228927,0.0009951,99569.0,99549.0,0.00217322]
[1733501229133,0.20089,99557.0,99549.0,0.00017322]
[1733501229280,0.200891,99556.0,99550.0,0.0044513]
[1733501229488,0.00892964,99569.0,99549.0,0.00317322]
[1733501229489,0.10503154,99568.0,99549.0,0.00317322]
[1733501229689,0.00892964,99569.0,99549.0,0.00017322]
[1733501229897,0.0009951,99569.0,99550.0,0.10503154]
[1733501230102,0.0008675,99570.0,99550.0,0.10503154]
[1733501230103,0.00846615,99568.0,99566.0,0.200871]
[1733501230277,0.0008675,99570.0,99568.0,0.200867]
[1733501230459,0.0008675,99570.0,99569.0,0.21025272]
[1733501230660,1e-07,99580.0,99570.0,0.200863]
[1733501230864,1e-07,99580.0,99577.0,0.200849]
[1733501231079,0.000988,99586.0,99580.0,0.200843]
[1733501231311,0.0008665,99590.0,99585.0,0.42652318]
[1733501231521,0.0008665,99590.0,99588.0,0.28911892]
[1733501231522,0.00845203,99589.0,99588.0,0.28911892]
[1733501231769,0.00845203,99589.0,99588.0,0.4745687]
[1733501232206,0.00845203,99589.0,99588.0,0.38627678]
[1733501232400,0.0008665,99590.0,99588.0,0.26073369]
[1733501232601,0.0008665,99590.0,99589.0,0.10503154]
[1733501232602,0.0018665,99590.0,99589.0,0.10503154]
[1733501232838,0.0018665,99590.0,99589.0,0.31037703]
[1733501233047,0.2016502,99610.0,99589.0,0.31037703]
[1733501233254,0.00017316,99590.0,99589.0,0.31037703]
[1733501234066,0.00017316,99590.0,99589.0,0.31937703]
[1733501234277,0.00017316,99590.0,99589.0,0.32748587]
[1733501235118,0.00117316,99590.0,99589.0,0.33448587]
[1733501237562,0.00203826,99590.0,99589.0,0.33448587]
[1733501238390,0.00203826,99590.0,99589.0,0.42059126]
[1733501239070,0.00203826,99590.0,99589.0,0.33448587]
[1733501239900,0.00203826,99590.0,99589.0,0.13366087]
[1733501240129,0.00203826,99590.0,99589.0,0.02052049]
[1733501240327,0.00203826,99590.0,99589.0,0.12555203]
[1733501241175,0.00103826,99590.0,99589.0,0.01352049]
[1733501241412,0.00103826,99590.0,99589.0,0.01752049]
[1733501241615,0.00103826,99590.0,99589.0,0.12920408]
[1733501241816,0.00103826,99590.0,99589.0,0.11720808]
[1733501242232,0.00103826,99590.0,99589.0,0.20630808]
[1733501242464,0.00103826,99590.0,99589.0,0.19630408]
[1733501242673,0.00103826,99590.0,99589.0,0.19730799]
[1733501242881,0.00103826,99590.0,99589.0,0.20630799]
[1733501243126,0.00103826,99590.0,99589.0,0.19630408]
[1733501243332,0.00103826,99590.0,99589.0,0.20230799]
[1733501243545,0.00103826,99590.0,99589.0,0.21030408]
[1733501243996,0.00103826,99590.0,99589.0,0.20530408]
[1733501244213,0.00203826,99590.0,99589.0,0.21230408]
[1733501247690,0.00203826,99590.0,99589.0,0.20565203]
[1733501248117,0.200787,99608.0,99589.0,0.20565203]
[1733501248326,0.0148988,99609.0,99590.0,0.30585454]
[1733501248552,0.200787,99608.0,99590.0,0.10503154]
[1733501248761,0.200787,99608.0,99591.0,0.00445979]
[1733501248963,0.401575,99608.0,99592.0,0.10503154]
[1733501249176,0.401575,99608.0,99591.0,0.00445979]
[1733501249177,0.200814,99595.0,99591.0,0.00445979]
[1733501249395,0.401628,99595.0,99592.0,0.01115417]
[1733501249601,0.200823,99590.0,99589.0,0.00017316]
[1733501249801,0.200823,99590.0,99589.0,0.00317316]
[1733501250012,0.200796,99604.0,99589.0,0.00017316]
[1733501250225,0.0008651,99590.0,99589.0,0.00017316]
[1733501250430,0.0008651,99590.0,99589.0,0.01253048]
[1733501250883,0.0008651,99590.0,99589.0,0.00017316]
[1733501251767,0.0008651,99590.0,99589.0,0.1052047]
[1733501252812,0.0008651,99590.0,99589.0,0.11920869]
[1733501253027,0.0008651,99590.0,99589.0,0.12746262]
[1733501253244,0.0008651,99590.0,99589.0,0.12245863]
[1733501253459,0.0008651,99590.0,99589.0,0.1142047]
[1733501253713,0.0008651,99590.0,99589.0,0.00917316]
[1733501253942,0.0008651,99590.0,99589.0,0.01417316]
[1733501255225,0.0003651,99590.0,99589.0,0.01417316]
[1733501260919,0.0003651,99590.0,99589.0,0.1192047]
[1733501261117,0.0003651,99590.0,99589.0,0.17420877]
[1733501261341,0.0003651,99590.0,99589.0,0.14784765]
[1733501261342,0.00880976,99590.0,99589.0,0.14784765]
[1733501261547,0.0003651,99590.0,99589.0,0.42927265]
[1733501261771,0.0003651,99590.0,99589.0,0.47677265]
[1733501262118,0.0003651,99590.0,99589.0,0.45377265]
[1733501262436,0.0003651,99590.0,99589.0,0.25294765]
[1733501263233,0.0003651,99590.0,99589.0,0.01981611]
[1733501263659,0.00880915,99590.0,99589.0,0.01417316]
[1733501264727,0.00880915,99590.0,99589.0,0.01981142]
[1733501265143,0.00880915,99590.0,99589.0,0.02787626]
[1733501265361,0.0003651,99590.0,99589.0,0.00581142]
[1733501265566,0.0003651,99590.0,99589.0,0.00881142]
[1733501265779,0.0003651,99590.0,99589.0,0.01681142]
[1733501265975,0.0003651,99590.0,99589.0,0.01117316]
[1733501266183,0.0003651,99590.0,99589.0,0.00817316]
[1733501266385,0.0003651,99590.0,99589.0,0.01217316]
[1733501266386,0.00885236,99590.0,99589.0,0.01217316]
[1733501266793,0.00885236,99590.0,99589.0,0.00817316]